bitfinex/quotes_BTCUSD_20241128
["timestamp","ask_amount","ask_price","bid_price","bid_amount"]
[1732757553958,0.207919,96191.0,96182.0,0.103968]
[1732757553959,0.10284521,96185.0,96182.0,0.103968]
[1732757554174,0.10284521,96185.0,96181.0,0.00038041]
[1732757554422,0.10284521,96185.0,96183.0,0.098967]
[1732757554665,0.157,96192.0,96181.0,0.00038041]
[1732757554936,0.10984521,96192.0,96191.0,0.103959]
[1732757555188,0.09300933,96219.0,96191.0,0.0751]
[1732757555436,0.12412226,96220.0,96207.0,0.103942]
[1732757555691,0.64664521,96208.0,96207.0,0.103942]
[1732757555907,0.10284521,96208.0,96207.0,0.179042]
[1732757556883,0.279028,96252.0,96207.0,0.179042]
[1732757556884,0.0930326,96238.0,96222.0,0.103926]
[1732757557122,0.26367116,96240.0,96222.0,0.179026]
[1732757557123,0.2405805,96240.0,96222.0,0.179026]
[1732757557389,0.12412226,96240.0,96222.0,0.18014238]
[1732757557641,0.22802926,96240.0,96222.0,0.18014238]
[1732757557906,0.103908,96239.0,96222.0,0.18014238]
[1732757558139,0.0067176,96223.0,96222.0,0.179026]
[1732757558374,0.0017176,96223.0,96222.0,0.179026]
[1732757558858,0.0057176,96223.0,96222.0,0.179026]
[1732757559080,0.0057176,96223.0,96214.0,0.0751]
[1732757559081,0.10556281,96223.0,96214.0,0.0751]
[1732757559304,0.0027176,96223.0,96222.0,0.103926]
[1732757559542,0.11056281,96223.0,96222.0,0.0008588]
[1732757559766,0.21448781,96223.0,96222.0,0.0008588]
[1732757560441,0.21348781,96223.0,96222.0,0.0008588]
[1732757560905,0.21548781,96223.0,96222.0,0.0008588]
[1732757561122,0.11156281,96223.0,96222.0,0.0008588]
[1732757561337,0.20848781,96223.0,96222.0,0.0008588]
[1732757561788,0.21548781,96223.0,96222.0,0.0008588]
[1732757562984,0.11156281,96223.0,96222.0,0.0008588]
[1732757563673,0.11156281,96223.0,96222.0,0.1047848]
[1732757564106,0.11156281,96223.0,96222.0,0.0008588]
[1732757565216,0.0087176,96223.0,96222.0,0.0759588]
[1732757565436,0.0087176,96223.0,96222.0,0.2264848]
[1732757565652,0.0087176,96223.0,96222.0,0.1798848]
[1732757566562,0.11156281,96223.0,96222.0,0.1798848]
[1732757566778,0.0087176,96223.0,96222.0,0.1798848]
[1732757571321,0.11156281,96223.0,96222.0,0.0008588]
[1732757571816,0.21548781,96223.0,96222.0,0.0008588]
[1732757572030,0.11156281,96223.0,96222.0,0.0008588]
[1732757573651,0.11156281,96223.0,96222.0,0.1047848]
[1732757575095,0.11156281,96223.0,96222.0,0.0008588]
[1732757575321,0.11156281,96223.0,96222.0,0.1047848]
[1732757578334,0.0087176,96223.0,96222.0,0.1047848]
[1732757578569,0.0087176,96223.0,96222.0,0.1823848]
[1732757579113,0.0087176,96223.0,96222.0,0.2321848]
[1732757580341,0.0087176,96223.0,96222.0,0.25259351]
[1732757580342,0.0067176,96223.0,96222.0,0.25259351]
[1732757580806,0.0037176,96223.0,96222.0,0.25259351]
[1732757581285,0.0017176,96223.0,96222.0,0.25459351]
[1732757581744,0.0017176,96223.0,96222.0,0.25559351]
[1732757581972,0.0017176,96223.0,96222.0,0.25359351]
[1732757582680,0.0017176,96223.0,96222.0,0.25659351]
[1732757582909,0.0017176,96223.0,96222.0,0.25359351]
[1732757583370,0.0017176,96223.0,96222.0,0.2361848]
[1732757583604,0.0017176,96223.0,96222.0,0.2351848]
[1732757583834,0.0017176,96223.0,96222.0,0.2361848]
[1732757584970,0.0017176,96223.0,96222.0,0.2461848]
[1732757585239,0.001717,96250.0,96249.0,0.103897]
[1732757587712,0.001717,96250.0,96249.0,0.105897]
[1732757588171,0.001717,96250.0,96249.0,0.107897]
[1732757588839,0.001717,96250.0,96249.0,0.10909675]
[1732757589523,0.10456221,96250.0,96249.0,0.107897]
[1732757590694,0.001717,96250.0,96249.0,0.107897]
[1732757592728,0.001717,96250.0,96249.0,0.1092774]
[1732757594360,0.001717,96250.0,96249.0,0.10213038]
[1732757595075,0.001717,96250.0,96249.0,0.10074998]
[1732757596431,0.001717,96250.0,96249.0,0.10258854]
[1732757599409,0.10456221,96250.0,96249.0,0.004]
[1732757599664,0.10456221,96250.0,96249.0,0.107897]
[1732757600321,0.10456221,96250.0,96249.0,0.004]
[1732757600782,0.20845821,96250.0,96249.0,0.004]
[1732757607768,0.10456221,96250.0,96249.0,0.004]
[1732757608016,0.10456221,96250.0,96249.0,0.107897]
[1732757608745,0.10456221,96250.0,96249.0,0.1087549]
[1732757611864,0.10456221,96250.0,96249.0,0.1088439]
[1732757619339,0.001717,96250.0,96249.0,0.1088439]
[1732757621668,0.001717,96250.0,96249.0,0.12068245]
[1732757621887,0.001717,96250.0,96249.0,0.15888245]
[1732757622113,0.001717,96250.0,96249.0,0.24678245]
[1732757622365,0.001717,96250.0,96249.0,0.2449439]
[1732757622830,0.001717,96250.0,96249.0,0.2549439]
[1732757623283,0.001717,96250.0,96249.0,0.27578861]
[1732757624407,0.001717,96250.0,96249.0,0.26578861]
[1732757624635,0.001717,96250.0,96249.0,0.27578861]
[1732757628004,0.001717,96250.0,96249.0,0.26578861]
[1732757629676,0.20845821,96250.0,96249.0,0.0049469]
[1732757630749,0.10456221,96250.0,96249.0,0.0049469]
[1732757633812,0.20845821,96250.0,96249.0,0.0049469]
[1732757635722,0.20845821,96250.0,96249.0,0.0029469]
[1732757635966,0.20845821,96250.0,96249.0,0.0009469]
[1732757636193,0.33845821,96250.0,96249.0,0.0009469]
[1732757636425,0.34745821,96250.0,96249.0,0.0009469]
[1732757636653,0.33445821,96250.0,96249.0,0.0009469]
[1732757637121,0.34345821,96250.0,96249.0,0.0009469]
[1732757638345,0.34145821,96250.0,96249.0,0.0009469]
[1732757638577,0.34345821,96250.0,96249.0,0.0009469]
[1732757639032,0.12056221,96250.0,96249.0,0.0009469]
[1732757639272,0.11156221,96250.0,96249.0,0.0009469]
[1732757639503,0.21745821,96250.0,96249.0,0.0009469]
[1732757639711,0.20845821,96250.0,96249.0,0.0009469]
[1732757639927,0.21445821,96250.0,96249.0,0.0009469]
[1732757640145,0.22345821,96250.0,96249.0,0.0009469]
[1732757641095,0.21745821,96250.0,96249.0,0.0009469]
[1732757641559,0.12056221,96250.0,96249.0,0.0009469]
[1732757641810,0.12056221,96250.0,96249.0,0.1048439]
[1732757643172,0.017717,96250.0,96249.0,0.1048439]
[1732757643393,0.017717,96250.0,96249.0,0.10588095]
[1732757644300,0.010717,96250.0,96249.0,0.10588095]
[1732757644868,0.010717,96250.0,96249.0,0.10736471]
[1732757645099,0.001717,96250.0,96249.0,0.10736471]
[1732757645332,0.001717,96250.0,96249.0,0.10636471]
[1732757645558,0.001717,96250.0,96249.0,0.11036471]
[1732757645805,0.001717,96250.0,96249.0,0.10936471]
[1732757646046,0.001717,96250.0,96249.0,0.11136471]
[1732757646261,0.001717,96250.0,96249.0,0.13190002]
[1732757648324,0.001717,96250.0,96249.0,0.17730002]
[1732757648588,0.001717,96250.0,96249.0,0.18430002]
[1732757649266,0.001717,96250.0,96249.0,0.18530002]
[1732757649481,0.001717,96250.0,96249.0,0.18230002]
[1732757649937,0.001717,96250.0,96249.0,0.18430002]
[1732757650162,0.001717,96250.0,96249.0,0.27749589]
[1732757650372,0.001717,96250.0,96249.0,0.27597508]
[1732757650591,0.001717,96250.0,96249.0,0.18277921]
[1732757650803,0.001717,96250.0,96249.0,0.18477921]
[1732757651523,0.001717,96250.0,96249.0,0.0049469]
[1732757651769,0.20845821,96250.0,96249.0,0.0049469]
[1732757652687,0.20845821,96250.0,96249.0,0.0009469]
[1732757653121,0.21645821,96250.0,96249.0,0.0019469]
[1732757654040,0.22045821,96250.0,96249.0,0.0019469]
[1732757656295,0.11656221,96250.0,96249.0,0.0019469]
[1732757656520,0.22045821,96250.0,96249.0,0.0019469]
[1732757659293,0.35195821,96250.0,96249.0,0.0019469]
[1732757667708,0.50195821,96250.0,96249.0,0.0019469]
[1732757670305,0.50195821,96250.0,96249.0,0.1058439]
[1732757670306,0.26656221,96250.0,96249.0,0.1058439]
[1732757670523,0.11656221,96250.0,96249.0,0.1058439]
[1732757676338,0.013717,96250.0,96249.0,0.1058439]
[1732757676826,0.013717,96250.0,96249.0,0.1869439]
[1732757677067,0.009717,96250.0,96249.0,0.1869439]
[1732757677314,0.009717,96250.0,96249.0,0.2334439]
[1732757677554,0.011717,96250.0,96249.0,0.2334439]
[1732757678001,0.001717,96250.0,96249.0,0.2324439]
[1732757678452,0.005717,96250.0,96249.0,0.2324439]
[1732757678679,0.001717,96250.0,96249.0,0.2324439]
[1732757679159,0.001717,96250.0,96249.0,0.1859439]
[1732757679598,0.001717,96250.0,96249.0,0.1869439]
[1732757680031,0.001717,96250.0,96249.0,0.1879439]
[1732757680485,0.001717,96250.0,96249.0,0.1869439]
[1732757680723,0.001717,96250.0,96249.0,0.1877004]
[1732757680945,0.001717,96250.0,96249.0,0.19061611]
[1732757684954,0.001717,96250.0,96249.0,0.18761611]
[1732757685162,0.001717,96250.0,96249.0,0.18861611]
[1732757686606,0.001717,96250.0,96249.0,0.18761611]
[1732757687003,0.001717,96250.0,96249.0,0.18961611]
[1732757687246,0.001717,96250.0,96249.0,0.1879439]
[1732757687674,0.001717,96250.0,96249.0,0.1068439]
[1732757687887,0.001717,96250.0,96249.0,0.1088439]
[1732757693551,0.001717,96250.0,96249.0,0.1068439]
[1732757694015,0.10456221,96250.0,96249.0,0.0029469]
[1732757694225,0.20845821,96250.0,96249.0,0.0029469]
[1732757694492,0.33675821,96250.0,96249.0,0.0009469]
[1732757694721,0.48875821,96250.0,96249.0,0.0009469]
[1732757695617,0.48675821,96250.0,96249.0,0.0009469]
[1732757695850,0.49575821,96250.0,96249.0,0.0019469]
[1732757697213,0.49975821,96250.0,96249.0,0.0019469]
[1732757699721,0.49975821,96250.0,96249.0,0.00076683]
[1732757701228,0.11756221,96250.0,96249.0,0.10466383]
[1732757701686,0.014717,96250.0,96249.0,0.10466383]
[1732757702414,0.010717,96250.0,96249.0,0.10466383]
[1732757702646,0.001717,96250.0,96249.0,0.103897]
[1732757703086,0.003717,96250.0,96249.0,0.103897]
[1732757703327,0.003717,96250.0,96249.0,0.1047549]
[1732757704477,0.005717,96250.0,96249.0,0.1047549]
[1732757704712,0.003717,96250.0,96249.0,0.10570253]
[1732757704933,0.001717,96250.0,96249.0,0.10570253]
[1732757705366,0.003717,96250.0,96249.0,0.10670253]
[1732757705572,0.001717,96250.0,96249.0,0.1057549]
[1732757705783,0.001717,96250.0,96249.0,0.1047549]
[1732757706030,0.003717,96250.0,96249.0,0.1047549]
[1732757706246,0.003717,96250.0,96249.0,0.1057549]
[1732757707415,0.003717,96250.0,96249.0,0.24619363]
[1732757707634,0.003717,96250.0,96249.0,0.2443549]
[1732757707849,0.001717,96250.0,96249.0,0.2353549]
[1732757708060,0.001717,96250.0,96249.0,0.2453549]
[1732757708267,0.002717,96250.0,96249.0,0.2353549]
[1732757708722,0.002717,96250.0,96249.0,0.2443549]
[1732757708971,0.001717,96250.0,96249.0,0.23964303]
[1732757709183,0.001717,96250.0,96249.0,0.24064303]
[1732757710512,0.001717,96250.0,96249.0,0.18094303]
[1732757711217,0.001717,96250.0,96249.0,0.17994303]
[1732757711663,0.001717,96250.0,96249.0,0.18094303]
[1732757712353,0.001717,96250.0,96249.0,0.10104303]
[1732757713009,0.001717,96250.0,96249.0,0.10004303]
[1732757713916,0.001717,96250.0,96249.0,0.09710341]
[1732757714613,0.001717,96250.0,96249.0,0.09810341]
[1732757715081,0.001717,96250.0,96249.0,0.09821038]
[1732757715289,0.001717,96250.0,96249.0,0.09994216]
[1732757715949,0.001717,96250.0,96249.0,0.09810341]
[1732757717553,0.001717,96250.0,96249.0,0.09994215]
[1732757717762,0.001717,96250.0,96249.0,0.22774215]
[1732757718027,0.001717,96250.0,96249.0,0.22590341]
[1732757719084,0.001717,96250.0,96249.0,0.22490341]
[1732757719303,0.001717,96250.0,96249.0,0.22590341]
[1732757719532,0.002717,96250.0,96249.0,0.22590341]
[1732757720241,0.002717,96250.0,96249.0,0.09810341]
[1732757721078,0.001717,96250.0,96249.0,0.09710341]
[1732757721498,0.10456221,96250.0,96249.0,0.09810341]
[1732757721949,0.10456221,96250.0,96249.0,0.09710341]
[1732757722442,0.10456221,96250.0,96249.0,0.09810341]
[1732757723471,0.10456221,96250.0,96249.0,0.09710341]
[1732757724939,0.20845821,96250.0,96249.0,0.0008579]
[1732757725154,0.10456221,96250.0,96249.0,0.0018579]
[1732757725901,0.21045821,96250.0,96249.0,0.0008579]
[1732757726119,0.34175821,96250.0,96249.0,0.0008579]
[1732757726330,0.26025821,96250.0,96249.0,0.0008579]
[1732757726562,0.15636221,96250.0,96249.0,0.0008579]
[1732757726790,0.10656221,96250.0,96249.0,0.0008579]
[1732757727253,0.10656221,96250.0,96249.0,0.1047549]
[1732757727938,0.10456221,96250.0,96249.0,0.1047549]
[1732757728365,0.11356221,96250.0,96249.0,0.1057549]
[1732757728584,0.001717,96250.0,96249.0,0.1810549]
[1732757728826,0.007717,96250.0,96249.0,0.1820549]
[1732757729081,0.012717,96250.0,96249.0,0.18388468]
[1732757729339,0.006717,96250.0,96249.0,0.18288468]
[1732757729609,0.008717,96250.0,96249.0,0.1920549]
[1732757729837,0.001717,96250.0,96249.0,0.1910549]
[1732757730515,0.001717,96250.0,96249.0,0.1920549]
[1732757730966,0.001717,96250.0,96249.0,0.1910549]
[1732757731207,0.002717,96250.0,96249.0,0.1910549]
[1732757731677,0.001717,96250.0,96249.0,0.1910549]
[1732757731912,0.001717,96250.0,96249.0,0.1920549]
[1732757732600,0.001717,96250.0,96249.0,0.1910549]
[1732757733062,0.001717,96250.0,96249.0,0.1950549]
[1732757733545,0.001717,96250.0,96249.0,0.1930549]
[1732757733994,0.001717,96250.0,96249.0,0.1950549]
[1732757740082,0.001717,96250.0,96249.0,0.19689341]
[1732757740299,0.001717,96250.0,96249.0,0.1950549]
[1732757740985,0.001717,96250.0,96249.0,0.28822102]
[1732757741197,0.001717,96250.0,96249.0,0.28822694]
[1732757741859,0.001717,96250.0,96249.0,0.1950549]
[1732757742076,0.001717,96250.0,96249.0,0.1087549]
[1732757742317,0.15246221,96250.0,96249.0,0.0048579]
[1732757742571,0.33385821,96250.0,96249.0,0.0048579]
[1732757742827,0.38604398,96250.0,96249.0,0.0048579]
[1732757743073,0.50352818,96250.0,96249.0,0.0048579]
[1732757743315,0.35352818,96250.0,96249.0,0.0048579]
[1732757743562,0.35352818,96250.0,96249.0,0.0028579]
[1732757743771,0.35352818,96250.0,96249.0,0.0038579]
[1732757744191,0.24963218,96250.0,96249.0,0.0038579]
[1732757744444,0.24963218,96250.0,96249.0,0.0008579]
[1732757744445,0.23685895,96250.0,96249.0,0.0008579]
[1732757744681,0.11645895,96250.0,96249.0,0.0008579]
[1732757745082,0.11545895,96250.0,96249.0,0.1047549]
[1732757745256,0.12045895,96250.0,96249.0,0.1057549]
[1732757745820,0.11145895,96250.0,96249.0,0.1047549]
[1732757746020,0.11145895,96250.0,96249.0,0.1057549]
[1732757746226,0.11845895,96250.0,96249.0,0.1057549]
[1732757746651,0.12345895,96250.0,96249.0,0.1067549]
[1732757747074,0.12345895,96250.0,96249.0,0.0028579]
[1732757747295,0.11845895,96250.0,96249.0,0.0018579]
[1732757747558,0.11445895,96250.0,96249.0,0.0008579]
[1732757747781,0.12245895,96250.0,96249.0,0.1057549]
[1732757747990,0.11445895,96250.0,96249.0,0.1047549]
[1732757748438,0.12145895,96250.0,96249.0,0.1057549]
[1732757749974,0.01861374,96250.0,96249.0,0.1057549]
[1732757750378,0.011717,96250.0,96249.0,0.1057549]
[1732757752683,0.11456221,96250.0,96249.0,0.0018579]
[1732757753119,0.12163717,96250.0,96249.0,0.0018579]
[1732757753579,0.12163717,96250.0,96249.0,0.1057549]
[1732757754030,0.12163717,96250.0,96249.0,0.0018579]
[1732757754830,0.22553317,96250.0,96249.0,0.0018579]
[1732757755265,0.30113317,96250.0,96249.0,0.0018579]
[1732757757895,0.22553317,96250.0,96249.0,0.0018579]
[1732757760734,0.12163717,96250.0,96249.0,0.0018579]
[1732757761157,0.12163717,96250.0,96249.0,0.1057549]
[1732757761373,0.12163717,96250.0,96249.0,0.0018579]
[1732757761574,0.12163717,96250.0,96249.0,0.1057549]
[1732757762024,0.11456221,96250.0,96249.0,0.1057549]
[1732757764706,0.22550991,96250.0,96249.0,0.0018579]
[1732757765126,0.12161391,96250.0,96249.0,0.0018579]
[1732757765838,0.12161391,96250.0,96249.0,0.1057549]
[1732757766077,0.0187687,96250.0,96249.0,0.1057549]
[1732757766311,0.011717,96250.0,96249.0,0.10759364]
[1732757767456,0.001717,96250.0,96249.0,0.10659364]
[1732757767683,0.004717,96250.0,96249.0,0.10659364]
[1732757767969,0.006717,96250.0,96249.0,0.10659364]
[1732757768207,0.001717,96250.0,96249.0,0.10659364]
[1732757769698,0.001717,96250.0,96249.0,0.10759364]
[1732757770369,0.001717,96250.0,96249.0,0.10659364]
[1732757770586,0.001717,96250.0,96249.0,0.10859364]
[1732757770807,0.001717,96250.0,96249.0,0.11859364]
[1732757771069,0.00164651,96250.0,96249.0,0.21179364]
[1732757771295,0.00164651,96250.0,96249.0,0.57788027]
[1732757771523,0.00164651,96250.0,96249.0,0.23194114]
[1732757771750,0.00164651,96250.0,96249.0,0.57499297]
[1732757771980,0.00164651,96250.0,96249.0,0.57599297]
[1732757772189,0.00164651,96250.0,96249.0,0.76240507]
[1732757772400,0.00164651,96250.0,96249.0,0.57499297]
[1732757772624,0.00264651,96250.0,96249.0,0.76840507]
[1732757772832,0.00264651,96250.0,96249.0,0.76640507]
[1732757773059,0.00264651,96250.0,96249.0,0.57999297]
[1732757773278,0.00264651,96250.0,96249.0,0.58199297]
[1732757773493,0.0017166,96278.0,96277.0,0.103866]
[1732757773700,0.10456181,96278.0,96277.0,0.103866]
[1732757773919,0.0017166,96278.0,96277.0,0.10555595]
[1732757775070,0.0047166,96278.0,96277.0,0.10555595]
[1732757775513,0.0047166,96278.0,96277.0,0.10855595]
[1732757776908,0.0017166,96278.0,96277.0,0.10855595]
[1732757777137,0.0017166,96278.0,96277.0,0.11055595]
[1732757778438,0.0017166,96278.0,96277.0,0.12055595]
[1732757781743,0.0017166,96278.0,96277.0,0.005]
[1732757781992,0.15843359,96278.0,96277.0,0.005]
[1732757783392,0.15843359,96278.0,96277.0,0.003]
[1732757783627,0.15843359,96278.0,96258.0,0.207773]
[1732757783628,0.16243359,96278.0,96272.0,0.103871]
[1732757783862,0.16243359,96278.0,96273.0,0.10387]
[1732757783863,0.10284521,96277.0,96273.0,0.10387]
[1732757784079,0.11022132,96277.0,96273.0,0.10387]
[1732757784299,0.11022132,96277.0,96276.0,0.103868]
[1732757784550,0.11022132,96277.0,96251.0,0.15]
[1732757784792,0.22799626,96270.0,96263.0,0.103881]
[1732757785003,0.10284521,96269.0,96266.0,0.103877]
[1732757785231,0.11019356,96269.0,96260.0,0.20777]
[1732757785453,0.11019356,96269.0,96252.0,0.207787]
[1732757785687,0.11019356,96269.0,96251.0,0.15]
[1732757785910,0.11019356,96269.0,96251.0,0.17069625]
[1732757786128,0.11019356,96269.0,96252.0,0.00108073]
[1732757786363,0.11019356,96269.0,96266.0,0.103878]
[1732757786580,0.11019356,96269.0,96268.0,0.103876]
[1732757787020,0.11019356,96269.0,96251.0,0.02069625]
[1732757787248,0.11019356,96269.0,96268.0,0.103876]
[1732757787688,0.11119356,96269.0,96268.0,0.103876]
[1732757787900,0.11019356,96269.0,96268.0,0.103876]
[1732757788330,0.11119356,96269.0,96268.0,0.103876]
[1732757788558,0.11019356,96269.0,96268.0,0.103876]
[1732757788823,0.11119356,96269.0,96268.0,0.103876]
[1732757789273,0.11119356,96269.0,96259.0,0.103886]
[1732757789494,0.11119356,96269.0,96251.0,0.02069625]
[1732757789495,0.0771,96268.0,96255.0,0.10389]
[1732757789718,0.20672321,96267.0,96260.0,0.103884]
[1732757789947,0.00733935,96266.0,96255.0,0.00078859]
[1732757790182,0.10284521,96265.0,96263.0,0.103881]
[1732757790415,0.00733618,96264.0,96263.0,0.103881]
[1732757790639,0.11018139,96264.0,96263.0,0.103881]
[1732757791516,0.11018139,96264.0,96263.0,0.104881]
[1732757791731,0.10284521,96264.0,96263.0,0.106881]
[1732757791938,0.0771,96274.0,96263.0,0.001]
[1732757792150,0.11019382,96273.0,96271.0,0.103873]
[1732757793455,0.11019382,96273.0,96272.0,0.103872]
[1732757793661,0.11019382,96273.0,96270.0,0.103873]
[1732757793867,0.10284521,96273.0,96271.0,0.103873]
[1732757794093,0.00734427,96272.0,96271.0,0.103873]
[1732757794306,0.11018948,96272.0,96271.0,0.103873]
[1732757795185,0.11618948,96272.0,96271.0,0.103873]
[1732757795640,0.11218948,96272.0,96271.0,0.103873]
[1732757795848,0.11018948,96272.0,96271.0,0.103873]
[1732757796501,0.00734427,96272.0,96271.0,0.103873]
[1732757796742,0.0017166,96278.0,96271.0,0.00183836]
[1732757796956,0.0017166,96278.0,96268.0,0.207753]
[1732757796957,0.10284521,96277.0,96276.0,0.103868]
[1732757797178,0.11020457,96277.0,96276.0,0.103868]
[1732757798044,0.10117404,96277.0,96276.0,0.103868]
[1732757798267,0.01335936,96277.0,96276.0,0.103868]
[1732757798512,0.01335936,96277.0,96276.0,0.18620636]
[1732757798776,0.004,96277.0,96276.0,0.23390636]
[1732757799007,0.004,96277.0,96276.0,0.232068]
[1732757799241,0.006,96277.0,96276.0,0.232068]
[1732757800078,0.002,96277.0,96276.0,0.232068]
[1732757800287,0.002,96277.0,96276.0,0.24413348]
[1732757800495,0.003,96277.0,96276.0,0.24413348]
[1732757800705,0.0017166,96278.0,96277.0,0.103866]
[1732757800914,0.0017166,96278.0,96277.0,0.10567786]
[1732757801987,0.0017166,96278.0,96277.0,0.10767786]
[1732757803160,0.0017166,96278.0,96277.0,0.11067786]
[1732757806073,0.0017166,96278.0,96277.0,0.13067786]
[1732757806309,0.0017166,96278.0,96277.0,0.4541541]
[1732757806546,0.0017174,96282.0,96281.0,0.01]
[1732757806759,0.0017174,96282.0,96281.0,0.11495165]
[1732757807848,0.0027174,96282.0,96281.0,0.12095165]
[1732757808073,0.0027174,96282.0,96281.0,0.21391018]
[1732757808518,0.0027174,96282.0,96281.0,0.21465839]
[1732757808735,0.0027174,96282.0,96281.0,0.21865839]
[1732757808966,0.0027174,96282.0,96281.0,0.21682053]
[1732757809396,0.0027174,96282.0,96281.0,0.350362]
[1732757809627,0.0027174,96282.0,96281.0,0.360362]
[1732757810509,0.0027174,96282.0,96281.0,0.49982636]
[1732757810735,0.0027174,96282.0,96281.0,0.70355402]
[1732757811154,0.0027174,96282.0,96281.0,0.84300899]
[1732757811567,0.0027174,96282.0,96281.0,0.70355402]
[1732757812248,0.0027174,96282.0,96281.0,0.70359085]
[1732757812453,0.0027174,96282.0,96281.0,0.88954843]
[1732757812865,0.0027174,96282.0,96281.0,0.75309085]
[1732757813763,0.0017174,96282.0,96281.0,0.74709085]
[1732757813988,0.0027174,96282.0,96281.0,0.93503199]
[1732757814211,0.0027174,96282.0,96281.0,0.93903199]
[1732757814448,0.0027174,96282.0,96281.0,0.93303199]
[1732757814449,0.0017174,96282.0,96281.0,0.93303199]
[1732757814697,0.0027174,96282.0,96281.0,0.93903199]
[1732757814934,0.0027174,96282.0,96281.0,0.74909085]
[1732757815154,0.0027174,96282.0,96281.0,0.93903199]
[1732757816016,0.0027174,96282.0,96281.0,0.75309085]
[1732757816223,0.0027174,96282.0,96281.0,0.93903199]
[1732757818231,0.0027174,96282.0,96281.0,0.75309085]
[1732757820270,0.0823,96319.0,96318.0,0.103822]
[1732757820526,0.18514521,96319.0,96318.0,0.103822]
[1732757820756,0.19261675,96319.0,96318.0,0.103822]
[1732757821179,0.00747154,96319.0,96318.0,0.103822]
[1732757821411,0.00947154,96319.0,96318.0,0.10565948]
[1732757821645,0.002,96319.0,96318.0,0.10565948]
[1732757822116,0.0017176,96320.0,96318.0,0.10565948]
[1732757822117,0.0017176,96320.0,96319.0,0.113821]
[1732757822367,0.0017176,96320.0,96319.0,0.27565817]
[1732757822591,0.0017176,96320.0,96319.0,0.273821]
[1732757822807,0.0017174,96326.0,96325.0,0.103815]
[1732757823249,0.0017174,96326.0,96325.0,0.10565217]
[1732757824327,0.0017174,96326.0,96325.0,0.11565217]
[1732757824542,0.0017174,96326.0,96325.0,0.11965217]
[1732757825233,0.0017174,96326.0,96325.0,0.19525217]
[1732757825457,0.0017174,96326.0,96325.0,0.45626021]
[1732757825699,0.001715,96346.0,96345.0,0.103793]
[1732757825952,0.001715,96346.0,96345.0,0.189393]
[1732757826179,0.001715,96346.0,96345.0,0.45223821]
[1732757826446,0.0008581,96362.0,96345.0,0.45223821]
[1732757826447,0.0008581,96362.0,96354.0,0.273783]
[1732757827304,0.0008581,96362.0,96354.0,0.30402178]
[1732757827755,0.0008581,96362.0,96354.0,0.253783]
[1732757827981,0.0008581,96362.0,96354.0,0.268783]
[1732757828204,0.0008581,96362.0,96354.0,0.28096815]
[1732757828411,0.0008581,96362.0,96354.0,0.27596815]
[1732757828616,0.0008581,96362.0,96354.0,0.28596815]
[1732757829271,0.0008581,96362.0,96354.0,0.28796815]
[1732757829901,0.0008581,96362.0,96354.0,0.29196815]
[1732757830153,0.0008581,96362.0,96354.0,0.29496815]
[1732757830598,0.0008581,96362.0,96354.0,0.28896815]
[1732757831021,0.0008581,96362.0,96354.0,0.260783]
[1732757831270,0.0008581,96362.0,96354.0,0.110783]
[1732757831529,0.0008581,96362.0,96354.0,0.107783]
[1732757831748,0.0008581,96362.0,96354.0,0.10766403]
[1732757831974,0.0008581,96362.0,96354.0,0.10592395]
[1732757832214,0.0008581,96362.0,96354.0,0.10292395]
[1732757832434,0.0008581,96362.0,96354.0,0.11292395]
[1732757833096,0.0008581,96362.0,96354.0,0.11792395]
[1732757833312,0.0008581,96362.0,96354.0,0.12999297]
[1732757833554,0.0008581,96362.0,96354.0,0.12499297]
[1732757834027,0.0008581,96362.0,96354.0,0.12536958]
[1732757834264,0.0008581,96362.0,96354.0,0.12936958]
[1732757834486,0.0008581,96362.0,96354.0,0.11730056]
[1732757834694,0.0008581,96362.0,96354.0,0.11330056]
[1732757834897,0.0008581,96362.0,96354.0,0.11630056]
[1732757835113,0.0008581,96362.0,96354.0,0.12130056]
[1732757835567,0.0008581,96362.0,96354.0,0.11887941]
[1732757835778,0.0008581,96362.0,96354.0,0.12187941]
[1732757836232,0.0008581,96362.0,96354.0,0.10204292]
[1732757836666,0.0008581,96362.0,96354.0,0.10704292]
[1732757836896,0.0008581,96362.0,96354.0,0.10204292]
[1732757837125,0.0008581,96362.0,96354.0,0.19954292]
[1732757837358,0.0008581,96362.0,96360.0,0.103777]
[1732757837817,0.0002,96369.0,96368.0,0.103768]
[1732757839173,0.0012,96369.0,96368.0,0.103768]
[1732757839791,0.0002,96369.0,96368.0,0.103768]
[1732757840669,0.0002,96369.0,96368.0,0.113768]
[1732757841319,0.0002,96369.0,96368.0,0.11473394]
[1732757841588,0.0002,96369.0,96368.0,0.11560423]
[1732757842458,0.0002,96369.0,96368.0,0.26560423]
[1732757842666,0.0002,96369.0,96368.0,0.263768]
[1732757842915,0.0002,96369.0,96368.0,0.28447507]
[1732757843997,0.0002,96369.0,96368.0,0.263768]
[1732757845292,0.0010572,96369.0,96368.0,0.263768]
[1732757845956,0.0010572,96369.0,96368.0,0.103768]
[1732757848085,0.0010572,96369.0,96368.0,0.108768]
[1732757849181,0.0010572,96369.0,96368.0,0.103768]
[1732757849474,0.0010572,96369.0,96368.0,0.104768]
[1732757849689,0.0010572,96369.0,96368.0,0.106768]
[1732757851030,0.0010572,96369.0,96368.0,0.256768]
[1732757852137,0.0010572,96369.0,96368.0,0.255768]
[1732757852353,0.0010572,96369.0,96368.0,0.257768]
[1732757852566,0.0010572,96369.0,96368.0,0.267768]
[1732757852771,0.0008582,96379.0,96378.0,0.103758]
[1732757854287,0.0008582,96379.0,96378.0,0.104758]
[1732757856514,0.0008582,96379.0,96378.0,0.264758]
[1732757856723,0.207423,96422.0,96388.0,0.103747]
[1732757856724,0.0759,96407.0,96388.0,0.103747]
[1732757856949,0.0759,96407.0,96388.0,0.263747]
[1732757858750,0.0012,96389.0,96388.0,0.263747]
[1732757859190,0.0022,96389.0,96388.0,0.263747]
[1732757859402,0.0012,96389.0,96388.0,0.263747]
[1732757859607,0.0012,96389.0,96388.0,0.265747]
[1732757860030,0.0002,96389.0,96388.0,0.265747]
[1732757860241,0.0002,96389.0,96388.0,0.268747]
[1732757862554,0.0002,96389.0,96388.0,0.108747]
[1732757862771,0.1242,96389.0,96388.0,0.108747]
[1732757863242,0.13582686,96389.0,96388.0,0.108747]
[1732757863695,0.34241807,96389.0,96388.0,0.003]
[1732757863905,0.13582686,96389.0,96388.0,0.003]
[1732757864146,0.13582686,96389.0,96388.0,0.104747]
[1732757864357,0.13151663,96389.0,96388.0,0.105747]
[1732757864584,0.1242,96389.0,96388.0,0.105747]
[1732757865521,0.1242,96389.0,96388.0,0.104747]